fUSD/lending_fUSD_20250804
["ID","MTS","AMOUNT","RATE_DAILY","PERIOD"]
[377261094,1754307072174,-1331.86,0.00039452,2]
[377261095,1754307072183,-547.93,0.00039452,2]
[377261096,1754307072192,-2137.86,0.00039452,2]
[377261097,1754307072202,-400.0,0.00039452,2]
[377261098,1754307072212,-1548.61,0.00039452,2]
[377261099,1754307072222,-1639.27,0.00039452,2]
[377261100,1754307072231,-400.0,0.00039452,2]
[377261101,1754307072241,-400.0,0.00039452,2]
[377261102,1754307072250,-400.0,0.00039452,2]
[377261103,1754307072260,-400.0,0.00039452,2]
[377261104,1754307072270,-637.5,0.00039452,2]
[377261105,1754307072279,-400.0,0.00039452,2]
[377261106,1754307072289,-505.0,0.00039452,2]
[377261107,1754307072299,-1100.75,0.00039452,2]
[377261108,1754307072308,-1088.77,0.00039452,2]
[377261109,1754307072318,-400.0,0.00039452,2]
[377261110,1754307072329,-1499.25,0.00039452,2]
[377261111,1754307072339,-400.0,0.00039452,2]
[377261112,1754307072348,-496.52,0.00039452,2]
[377261113,1754307072358,-1352.26,0.00039452,2]
[377261114,1754307072368,-400.0,0.00039452,2]
[377261115,1754307072378,-411.03,0.00039452,2]
[377261116,1754307072388,-2643.96,0.00039452,2]
[377261117,1754307072398,-400.0,0.00039452,2]
[377261118,1754307072410,-3717.59,0.00039452,2]
[377261119,1754307072419,-400.0,0.00039452,2]
[377261120,1754307072429,-1674.1,0.00039452,2]
[377261121,1754307072439,-400.0,0.00039452,2]
[377261122,1754307072448,-2317.11,0.00039452,2]
[377261123,1754307072459,-439.85,0.00039452,2]
[377261124,1754307072468,-373.18660364,0.00039452,2]
[377261125,1754307072478,-1175.8,0.00039452,2]
[377261126,1754307072488,-902.64,0.00039452,2]
[377261127,1754307072498,-400.0,0.00039452,2]
[377261128,1754307072508,-400.0,0.00039452,2]
[377261129,1754307072518,-889.46,0.00039452,2]
[377261130,1754307072529,-250.78510382,0.00039452,2]
[377261131,1754307072539,-716.87,0.00039452,2]
[377261132,1754307072549,-3274.38,0.00039452,2]
[377261133,1754307072559,-1218.23,0.00039452,2]
[377261134,1754307072569,-2298.94,0.00039452,2]
[377261135,1754307072580,-679.6,0.00039452,2]
[377261136,1754307072589,-1306.33,0.00039452,2]
[377261137,1754307072600,-400.0,0.00039452,2]
[377261138,1754307072610,-400.0,0.00039452,2]
[377261139,1754307072620,-1060.53,0.00039452,2]
[377261140,1754307072630,-1528.27,0.00039452,2]
[377261141,1754307072640,-1373.45,0.00039452,2]
[377261142,1754307072650,-400.0,0.00039452,2]
[377261143,1754307072666,-400.0,0.00039452,2]
[377261144,1754307072677,-843.75,0.00039452,2]
[377261145,1754307072687,-1166.0,0.00039452,2]
[377261146,1754307072698,-1074.519448,0.00039452,2]
[377261147,1754307072708,-1074.519448,0.00039452,2]
[377261148,1754307072718,-400.0,0.00039452,2]
[377261149,1754307072728,-400.0,0.00039452,2]
[377261150,1754307072740,-1400.21,0.00039452,2]
[377261151,1754307072750,-766.64,0.00039452,2]
[377261152,1754307072761,-400.0,0.00039452,2]
[377261153,1754307072771,-400.0,0.00039452,2]
[377261154,1754307072781,-1264.47,0.00039452,2]
[377261155,1754307072792,-688.596206,0.00039452,2]
[377261156,1754307072803,-1858.26,0.00039452,2]
[377261157,1754307072813,-688.596206,0.00039452,2]
[377261158,1754307072824,-451.12,0.00039452,2]
[377261159,1754307072834,-516.05,0.00039452,2]
[377261160,1754307072843,-576.4,0.00039452,2]
[377261161,1754307072853,-1560.4,0.00039452,2]
[377261162,1754307072863,-1097.944232,0.00039452,2]
[377261163,1754307072874,-1097.944232,0.00039452,2]
[377261164,1754307072884,-955.21,0.00039452,2]
[377261165,1754307072894,-400.0,0.00039452,2]
[377261166,1754307072905,-1319.58,0.00039452,2]
[377261167,1754307072915,-400.0,0.00039452,2]
[377261168,1754307072924,-763.75,0.00039452,2]
[377261169,1754307072934,-400.0,0.00039452,2]
[377261170,1754307072944,-400.0,0.00039452,2]
[377261171,1754307072954,-462.11,0.00039452,2]
[377261172,1754307072963,-400.0,0.00039452,2]
[377261173,1754307072973,-400.0,0.00039452,2]
[377261174,1754307072982,-491.54,0.00039452,2]
[377261175,1754307072992,-585.53,0.00039452,2]
[377261176,1754307073002,-400.0,0.00039452,2]
[377261177,1754307073011,-3730.41,0.00039452,2]
[377261178,1754307073023,-400.0,0.00039452,2]
[377261179,1754307073032,-944.3,0.00039452,2]
[377261180,1754307073042,-254.42235091,0.00039452,2]
[377261181,1754307073051,-700.29,0.00039452,2]
[377261182,1754307073061,-810.6,0.00039452,2]
[377261183,1754307073071,-2054.28,0.00039452,2]
[377261184,1754307073081,-32828.96,0.00039452,2]
[377261185,1754307073090,-421.26244805,0.00039452,2]
[377261186,1754307073100,-1224.12,0.00039452,2]
[377261187,1754307073110,-2397.74,0.00039452,2]
[377261188,1754307073119,-2164.55,0.00039452,2]
[377261189,1754307073129,-400.0,0.00039452,2]
[377261190,1754307073139,-400.0,0.00039452,2]
[377261191,1754307073148,-406.1,0.00039452,2]
[377261192,1754307073158,-400.0,0.00039452,2]
[377261193,1754307073168,-400.0,0.00039452,2]
[377261194,1754307073178,-1542.06,0.00039452,2]
[377261195,1754307073187,-1597.87,0.00039452,2]
[377261196,1754307073197,-1458.8,0.00039452,2]
[377261197,1754307073207,-400.0,0.00039452,2]
[377261198,1754307073216,-3637.58,0.00039452,2]
[377261199,1754307073225,-1860.78,0.00039452,2]
[377261200,1754307073235,-2413.69,0.00039452,2]
[377261201,1754307073245,-400.0,0.00039452,2]
[377261202,1754307073254,-542.49,0.00039452,2]
[377261203,1754307073264,-400.0,0.00039452,2]
[377261204,1754307073273,-400.0,0.00039452,2]
[377261205,1754307073283,-472.61,0.00039452,2]
[377261206,1754307073294,-896.59,0.00039452,2]
[377261207,1754307073303,-1015.64,0.00039452,2]
[377261208,1754307073313,-430.35,0.00039452,2]
[377261209,1754307073323,-742.14,0.00039452,2]
[377261210,1754307073333,-676.4,0.00039452,2]
[377261211,1754307073343,-590.69,0.00039452,2]
[377261212,1754307073353,-400.0,0.00039452,2]
[377261213,1754307073363,-400.0,0.00039452,2]
[377261214,1754307073373,-1167.67,0.00039452,2]
[377261215,1754307073383,-693.24,0.00039452,2]
[377261216,1754307073392,-496.16,0.00039452,2]
[377261217,1754307073402,-2247.66,0.00039452,2]
[377261218,1754307073412,-400.0,0.00039452,2]
[377261219,1754307073422,-540.37,0.00039452,2]
[377261220,1754307073433,-400.0,0.00039452,2]
[377261221,1754307073446,-400.0,0.00039452,2]
[377261222,1754307073455,-400.0,0.00039452,2]
[377261223,1754307073465,-412.31,0.00039452,2]
[377261224,1754307073475,-1670.85,0.00039452,2]
[377261225,1754307073485,-1662.71,0.00039452,2]
[377261226,1754307073495,-551.34,0.00039452,2]
[377261227,1754307073505,-548.4285785,0.00039452,2]
[377261228,1754307073515,-1799.02,0.00039452,2]
[377261229,1754307073524,-2180.52,0.00039452,2]
[377261230,1754307073534,-400.0,0.00039452,2]
[377261231,1754307073543,-1680.17,0.00039452,2]
[377261232,1754307073554,-400.0,0.00039452,2]
[377261233,1754307073563,-902.78,0.00039452,2]
[377261234,1754307073573,-401.71,0.00039452,2]
[377261235,1754307073583,-2280.29,0.00039452,2]
[377261236,1754307073592,-400.0,0.00039452,2]
[377261237,1754307073602,-400.0,0.00039452,2]
[377261238,1754307073611,-400.0,0.00039452,2]
[377261239,1754307073621,-400.0,0.00039452,2]
[377261240,1754307073631,-400.0,0.00039452,2]
[377261241,1754307073641,-539.97,0.00039452,2]
[377261242,1754307073651,-400.0,0.00039452,2]
[377261243,1754307073665,-1028.62,0.00039452,2]
[377261244,1754307073675,-956.34,0.00039452,2]
[377261245,1754307073685,-400.0,0.00039452,2]
[377261246,1754307073695,-400.0,0.00039452,2]
[377261247,1754307073705,-316.12,0.00039452,2]
[377261248,1754307073715,-400.0,0.00039452,2]
[377261249,1754307073725,-400.0,0.00039452,2]
[377261250,1754307073735,-400.0,0.00039452,2]
[377261251,1754307073745,-313.13398519,0.00039452,2]
[377261252,1754307073756,-400.0,0.00039452,2]
[377261253,1754307073766,-400.0,0.00039452,2]
[377261254,1754307073776,-6288.24,0.00039452,2]
[377261255,1754307073786,-400.0,0.00039452,2]
[377261256,1754307073798,-400.0,0.00039452,2]
[377261257,1754307073808,-400.0,0.00039452,2]
[377261258,1754307073818,-1354.25,0.00039452,2]
[377261259,1754307073828,-1034.95,0.00039452,2]
[377261260,1754307073837,-749.02,0.00039452,2]
[377261261,1754307073848,-400.0,0.00039452,2]
[377261262,1754307073860,-400.0,0.00039452,2]
[377261263,1754307073871,-405.52,0.00039452,2]
[377261264,1754307073881,-772.52,0.00039452,2]
[377261265,1754307073891,-400.0,0.00039452,2]
[377261266,1754307073901,-400.0,0.00039452,2]
[377261267,1754307073911,-1372.4,0.00039452,2]
[377261268,1754307073920,-405.34,0.00039452,2]
[377261269,1754307073929,-400.0,0.00039452,2]
[377261270,1754307073939,-777.53,0.00039452,2]
[377261271,1754307073949,-1822.68,0.00039452,2]
[377261272,1754307073959,-400.0,0.00039452,2]
[377261273,1754307073968,-400.0,0.00039452,2]
[377261274,1754307073978,-1874.05,0.00039452,2]
[377261275,1754307073988,-1055.55,0.00039452,2]
[377261276,1754307073998,-1400.05,0.00039452,2]
[377261277,1754307074007,-4561.8,0.00039452,2]
[377261278,1754307074017,-895.04,0.00039452,2]
[377261279,1754307074027,-686.05,0.00039452,2]
[377261280,1754307074037,-1022.94,0.00039452,2]
[377261281,1754307074047,-1204.7,0.00039452,2]
[377261282,1754307074058,-400.0,0.00039452,2]
[377261283,1754307074069,-2715.72,0.00039452,2]
[377261284,1754307074078,-1840.46,0.00039452,2]
[377261285,1754307074088,-400.0,0.00039452,2]
[377261286,1754307074097,-2172.9,0.00039452,2]
[377261287,1754307074107,-1340.61,0.00039452,2]
[377261288,1754307074117,-496.2,0.00039452,2]
[377261289,1754307074126,-2041.89,0.00039452,2]
[377261290,1754307074137,-1789.51,0.00039452,2]
[377261291,1754307074147,-400.0,0.00039452,2]
[377261292,1754307074157,-400.0,0.00039452,2]
[377261293,1754307074166,-1095.94,0.00039452,2]
[377261294,1754307074176,-758.03,0.00039452,2]
[377261295,1754307074186,-400.0,0.00039452,2]
[377261296,1754307074196,-400.0,0.00039452,2]
[377261297,1754307074212,-400.0,0.00039452,2]
[377261298,1754307074222,-527.07,0.00039452,2]
[377261299,1754307074231,-400.0,0.00039452,2]
[377261300,1754307074241,-1103.63,0.00039452,2]
[377261301,1754307074251,-400.0,0.00039452,2]
[377261302,1754307074260,-400.0,0.00039452,2]
[377261303,1754307074270,-544.57,0.00039452,2]
[377261304,1754307074280,-400.0,0.00039452,2]
[377261305,1754307074290,-683.03,0.00039452,2]
[377261306,1754307074300,-1640.51,0.00039452,2]
[377261307,1754307074309,-400.0,0.00039452,2]
[377261308,1754307074319,-1701.09,0.00039452,2]
[377261309,1754307074329,-1617.39,0.00039452,2]
[377261310,1754307074339,-6692.2,0.00039452,2]
[377261311,1754307074348,-1984.91,0.00039452,2]
[377261312,1754307074359,-1362.62,0.00039452,2]
[377261313,1754307074368,-400.0,0.00039452,2]
[377261314,1754307074377,-400.0,0.00039452,2]
[377261315,1754307074387,-602.62,0.00039452,2]
[377261316,1754307074396,-807.33,0.00039452,2]
[377261317,1754307074406,-1920.03,0.00039452,2]
[377261318,1754307074415,-462.96,0.00039452,2]
[377261319,1754307074425,-756.65,0.00039452,2]
[377261320,1754307074434,-400.0,0.00039452,2]
[377261321,1754307074443,-400.0,0.00039452,2]
[377261322,1754307074453,-400.0,0.00039452,2]
[377261323,1754307074463,-449.48,0.00039452,2]
[377261324,1754307074472,-466.61,0.00039452,2]
[377261325,1754307074482,-400.0,0.00039452,2]
[377261326,1754307074491,-1170.37,0.00039452,2]
[377261327,1754307074501,-400.0,0.00039452,2]
[377261328,1754307074510,-815.79,0.00039452,2]
[377261329,1754307074520,-1923.03,0.00039452,2]
[377261330,1754307074529,-400.0,0.00039452,2]
[377261331,1754307074539,-400.0,0.00039452,2]
[377261332,1754307074548,-419.23,0.00039452,2]
[377261333,1754307074558,-400.0,0.00039452,2]
[377261334,1754307074567,-400.0,0.00039452,2]
[377261335,1754307074576,-400.0,0.00039452,2]
[377261336,1754307074585,-400.0,0.00039452,2]
[377261337,1754307074595,-188.57,0.00039452,2]
[377261338,1754307074604,-400.0,0.00039452,2]
[377261339,1754307074613,-400.0,0.00039452,2]
[377261340,1754307074622,-2951.47,0.00039452,2]
[377261341,1754307074631,-400.0,0.00039452,2]
[377261342,1754307074641,-306.22,0.00039452,2]
[377261343,1754307074651,-424.01,0.00039452,2]
[377261344,1754307074663,-667.25,0.00039452,2]
[377261345,1754307074673,-400.0,0.00039452,2]
[377261346,1754307074683,-2064.16,0.00039452,2]
[377261347,1754307074693,-1583.35,0.00039452,2]
[377261348,1754307074703,-408.78,0.00039452,2]
[377261349,1754307074713,-400.0,0.00039452,2]
[377261350,1754307074724,-1867.52,0.00039452,2]
[377261351,1754307074734,-963.11437667,0.00039468,5]
[377261352,1754307074746,-1500.0,0.00039468,5]
[377261353,1754307074757,-1000.0,0.00039521,5]
[377261354,1754307074771,-575.82222738,0.00039521,5]
[377261355,1754307074780,-1000.0,0.00039521,5]
[377261356,1754307074790,-184.48,0.00039564,2]
[377261357,1754307074800,-4000.0,0.00039614,8]
[377261358,1754307074811,-38781.35975281,0.00039626,2]
[377261359,1754307074820,-594.75,0.00039644,2]
[377261360,1754307074830,-199.84,0.00039654,2]
[377261361,1754307074840,-150.0,0.00039725,2]
[377261362,1754307074850,-2189.71,0.00039725,2]
[377261363,1754307074860,-2189.71,0.00039725,2]
[377261364,1754307074870,-2189.71,0.00039725,2]
[377261365,1754307074879,-2189.71,0.00039725,2]
[377261366,1754307074888,-2189.71,0.00039725,2]
[377261367,1754307074900,-2189.7547865,0.00039725,2]
[377261368,1754307074910,-400.0,0.00039726,2]
[377261369,1754307074919,-1384.01,0.00039726,2]
[377261370,1754307074929,-400.0,0.00039726,2]
[377261371,1754307074940,-400.0,0.00039726,2]
[377261372,1754307074949,-462.58,0.00039726,2]
[377261373,1754307074959,-277.99,0.00039726,2]
[377261374,1754307074969,-530.71,0.00039726,2]
[377261375,1754307074979,-400.0,0.00039726,2]
[377261376,1754307074988,-2083.77,0.00039726,2]
[377261377,1754307074997,-400.0,0.00039726,2]
[377261378,1754307075008,-489.8,0.00039726,2]
[377261379,1754307075017,-408.05,0.00039726,2]
[377261380,1754307075026,-400.0,0.00039726,2]
[377261381,1754307075037,-400.0,0.00039726,2]
[377261382,1754307075047,-400.0,0.00039726,2]
[377261383,1754307075057,-400.0,0.00039726,2]
[377261384,1754307075066,-400.0,0.00039726,2]
[377261385,1754307075075,-400.0,0.00039726,2]
[377261386,1754307075086,-667.04,0.00039726,2]
[377261387,1754307075095,-597.5,0.00039726,2]
[377261388,1754307075105,-400.0,0.00039726,2]
[377261389,1754307075114,-400.0,0.00039726,2]
[377261390,1754307075123,-400.0,0.00039726,2]
[377261391,1754307075132,-400.0,0.00039726,2]
[377261392,1754307075141,-400.0,0.00039726,2]
[377261393,1754307075151,-590.95,0.00039726,2]
[377261394,1754307075160,-400.0,0.00039726,2]
[377261395,1754307075170,-508.94,0.00039726,2]
[377261396,1754307075179,-400.0,0.00039726,2]
[377261397,1754307075188,-400.0,0.00039726,2]
[377261398,1754307075197,-995.62,0.00039726,2]
[377261399,1754307075206,-400.0,0.00039726,2]
[377261400,1754307075216,-403.49947676,0.00039726,2]
[377261401,1754307075225,-2413.42,0.00039726,2]
[377261402,1754307075234,-568.78,0.00039726,2]
[377261403,1754307075243,-400.0,0.00039726,2]
[377261404,1754307075252,-1662.7,0.00039726,2]
[377261405,1754307075261,-400.0,0.00039726,2]
[377261406,1754307075270,-199.56627191,0.00039726,2]
[377261407,1754307075279,-400.0,0.00039726,2]
[377261408,1754307075289,-421.46,0.00039726,2]
[377261409,1754307075298,-1365.06,0.00039726,2]
[377261410,1754307075308,-1940.39,0.00039726,2]
[377261411,1754307075319,-400.0,0.00039726,2]
[377261412,1754307075328,-952.93,0.00039726,2]
[377261413,1754307075338,-400.0,0.00039726,2]
[377261414,1754307075347,-400.0,0.00039726,2]
[377261415,1754307075356,-400.0,0.00039726,2]
[377261416,1754307075366,-400.0,0.00039726,2]
[377261417,1754307075376,-681.74,0.00039726,2]
[377261418,1754307075385,-1270.32,0.00039726,2]
[377261419,1754307075395,-400.0,0.00039726,2]
[377261420,1754307075404,-400.0,0.00039726,2]
[377261421,1754307075414,-400.0,0.00039726,2]
[377261422,1754307075424,-495.94,0.00039726,2]
[377261423,1754307075433,-400.0,0.00039726,2]
[377261424,1754307075442,-400.0,0.00039726,2]
[377261425,1754307075451,-400.0,0.00039726,2]
[377261426,1754307075461,-1990.45,0.00039726,2]
[377261427,1754307075470,-400.0,0.00039726,2]
[377261428,1754307075479,-400.0,0.00039726,2]
[377261429,1754307075489,-400.0,0.00039726,2]
[377261430,1754307075498,-400.0,0.00039726,2]
[377261431,1754307075619,-400.0,0.00039726,2]
[377261432,1754307075642,-1607.54,0.00039726,2]
[377261433,1754307075653,-1402.16,0.00039726,2]
[377261434,1754307075667,-519.5,0.00039726,2]
[377261435,1754307075677,-400.0,0.00039726,2]
[377261436,1754307075687,-1568.88,0.00039726,2]
[377261437,1754307075697,-400.0,0.00039726,2]
[377261438,1754307075707,-980.14,0.00039726,2]
[377261439,1754307075717,-445.44,0.00039726,2]
[377261440,1754307075726,-2149.98,0.00039726,2]
[377261441,1754307075737,-400.0,0.00039726,2]
[377261442,1754307075747,-400.0,0.00039726,2]
[377261443,1754307075757,-1328.71,0.00039726,2]
[377261444,1754307075766,-400.0,0.00039726,2]
[377261445,1754307075776,-586.64,0.00039726,2]
[377261446,1754307075785,-400.0,0.00039726,2]
[377261447,1754307075796,-400.0,0.00039726,2]
[377261448,1754307075806,-3263.75,0.00039726,2]
[377261449,1754307075816,-1104.52,0.00039726,2]
[377261450,1754307075826,-436.1,0.00039726,2]
[377261451,1754307075835,-636.35,0.00039726,2]
[377261452,1754307075845,-497.2896642,0.00039726,2]
[377261453,1754307075855,-1329.24,0.00039726,2]
[377261454,1754307075865,-644.79,0.00039726,2]
[377261455,1754307075878,-400.0,0.00039726,2]
[377261456,1754307075888,-400.0,0.00039726,2]
[377261457,1754307075900,-468.62,0.00039726,2]
[377261458,1754307075910,-400.0,0.00039726,2]
[377261459,1754307075920,-1127.15,0.00039726,2]
[377261460,1754307075930,-400.0,0.00039726,2]
[377261461,1754307075939,-400.0,0.00039726,2]
[377261462,1754307075949,-701.03,0.00039726,2]
[377261463,1754307075958,-400.0,0.00039726,2]
[377261464,1754307075968,-400.0,0.00039726,2]
[377261465,1754307075978,-992.4,0.00039726,2]
[377261466,1754307075988,-452.76,0.00039726,2]
[377261467,1754307075997,-450.75,0.00039726,2]
[377261468,1754307076007,-400.0,0.00039726,2]
[377261469,1754307076017,-400.0,0.00039726,2]
[377261470,1754307076027,-400.0,0.00039726,2]
[377261471,1754307076036,-400.0,0.00039726,2]
[377261472,1754307076046,-534.51,0.00039726,2]
[377261473,1754307076055,-892.92,0.00039726,2]
[377261474,1754307076065,-400.0,0.00039726,2]
[377261475,1754307076075,-811.05,0.00039726,2]
[377261476,1754307076084,-400.0,0.00039726,2]
[377261477,1754307076093,-400.0,0.00039726,2]
[377261478,1754307076102,-1343.86,0.00039726,2]
[377261479,1754307076112,-628.82,0.00039726,2]
[377261480,1754307076121,-1242.39,0.00039726,2]
[377261481,1754307076131,-1542.48,0.00039726,2]
[377261482,1754307076140,-876.68,0.00039726,2]
[377261483,1754307076149,-400.0,0.00039726,2]
[377261484,1754307076159,-912.37,0.00039726,2]
[377261485,1754307076168,-400.0,0.00039726,2]
[377261486,1754307076177,-400.0,0.00039726,2]
[377261487,1754307076187,-400.0,0.00039726,2]
[377261488,1754307076197,-400.0,0.00039726,2]
[377261489,1754307076207,-581.56,0.00039726,2]
[377261490,1754307076217,-812.07,0.00039726,2]
[377261491,1754307076226,-400.0,0.00039726,2]
[377261492,1754307076236,-540.98,0.00039726,2]
[377261493,1754307076245,-466.17,0.00039726,2]
[377261494,1754307076256,-400.0,0.00039726,2]
[377261495,1754307076266,-892.29,0.00039726,2]
[377261496,1754307076275,-512.04,0.00039726,2]
[377261497,1754307076285,-1204.41,0.00039726,2]
[377261498,1754307076295,-507.62,0.00039726,2]
[377261499,1754307076304,-2032.62,0.00039726,2]
[377261500,1754307076314,-400.0,0.00039726,2]
[377261501,1754307076324,-978.92,0.00039726,2]
[377261502,1754307076334,-483.03,0.00039726,2]
[377261503,1754307076344,-623.34,0.00039726,2]
[377261504,1754307076354,-400.0,0.00039726,2]
[377261505,1754307076363,-400.0,0.00039726,2]
[377261506,1754307076373,-1282.08,0.00039726,2]
[377261507,1754307076382,-954.63,0.00039726,2]
[377261508,1754307076393,-1000.0,0.00039726,2]
[377261509,1754307076402,-424.03,0.00039726,2]
[377261510,1754307076412,-862.61,0.00039726,2]
[377261511,1754307076422,-694.26,0.00039726,2]
[377261512,1754307076431,-920.74,0.00039726,2]
[377261513,1754307076441,-446.01,0.00039726,2]
[377261514,1754307076451,-583.16,0.00039726,2]
[377261515,1754307076461,-400.0,0.00039726,2]
[377261516,1754307076471,-571.07,0.00039726,2]
[377261517,1754307076481,-556.35,0.00039726,2]
[377261518,1754307076490,-400.0,0.00039726,2]
[377261519,1754307076500,-791.02,0.00039726,2]
[377261520,1754307076510,-862.3,0.00039726,2]
[377261521,1754307076520,-400.0,0.00039726,2]
[377261522,1754307076530,-400.0,0.00039726,2]
[377261523,1754307076540,-400.0,0.00039726,2]
[377261524,1754307076550,-663.93,0.00039726,2]
[377261525,1754307076560,-400.0,0.00039726,2]
[377261526,1754307076571,-958.9,0.00039726,2]
[377261527,1754307076580,-400.0,0.00039726,2]
[377261528,1754307076590,-400.0,0.00039726,2]
[377261529,1754307076600,-481.81,0.00039726,2]
[377261530,1754307076610,-680.83,0.00039726,2]
[377261531,1754307076619,-400.0,0.00039726,2]
[377261532,1754307076629,-414.65,0.00039726,2]
[377261533,1754307076641,-489.66,0.00039726,2]
[377261534,1754307076652,-2362.47,0.00039726,2]
[377261535,1754307076664,-272.40909071,0.00039726,2]
[377261536,1754307076675,-838.53,0.00039726,2]
[377261537,1754307076685,-1047.46,0.00039726,2]
[377261538,1754307076694,-262.68017576,0.00039726,2]
[377261539,1754307076708,-1205.09,0.00039726,2]
[377261540,1754307076717,-476.33,0.00039726,2]
[377261541,1754307076727,-400.0,0.00039726,2]
[377261542,1754307076737,-1053.75,0.00039726,2]
[377261543,1754307076747,-543.05,0.00039726,2]
[377261544,1754307076757,-445.54,0.00039726,2]
[377261545,1754307076768,-400.0,0.00039726,2]
[377261546,1754307076778,-2911.68,0.00039726,2]
[377261547,1754307076787,-907.96,0.00039726,2]
[377261548,1754307076798,-900.03,0.00039726,2]
[377261549,1754307076807,-400.0,0.00039726,2]
[377261550,1754307076817,-461.76,0.00039726,2]
[377261551,1754307076827,-516.36,0.00039726,2]
[377261552,1754307076837,-468.49,0.00039726,2]
[377261553,1754307076847,-1003.97,0.00039726,2]
[377261554,1754307076857,-616.9,0.00039726,2]
[377261555,1754307076866,-747.36,0.00039726,2]
[377261556,1754307076875,-801.26,0.00039726,2]
[377261557,1754307076885,-1686.22,0.00039726,2]
[377261558,1754307076895,-400.0,0.00039726,2]
[377261559,1754307076905,-877.94,0.00039726,2]
[377261560,1754307076915,-521.82,0.00039726,2]
[377261561,1754307076925,-400.0,0.00039726,2]
[377261562,1754307076935,-400.0,0.00039726,2]
[377261563,1754307076945,-400.0,0.00039726,2]
[377261564,1754307076955,-864.99,0.00039726,2]
[377261565,1754307076965,-982.85,0.00039726,2]
[377261566,1754307076975,-792.37,0.00039726,2]
[377261567,1754307076985,-400.0,0.00039726,2]
[377261568,1754307076995,-400.0,0.00039726,2]
[377261569,1754307077005,-929.68,0.00039726,2]
[377261570,1754307077016,-400.0,0.00039726,2]
[377261571,1754307077027,-415.04,0.00039726,2]
[377261572,1754307077037,-449.71,0.00039726,2]
[377261573,1754307077047,-400.0,0.00039726,2]
[377261574,1754307077057,-400.0,0.00039726,2]
[377261575,1754307077067,-892.22,0.00039726,2]
[377261576,1754307077077,-625.39,0.00039726,2]
[377261577,1754307077086,-400.0,0.00039726,2]
[377261578,1754307077096,-400.0,0.00039726,2]
[377261579,1754307077106,-400.0,0.00039726,2]
[377261580,1754307077116,-419.27,0.00039726,2]
[377261581,1754307077126,-1082.15,0.00039726,2]
[377261582,1754307077136,-1261.52,0.00039726,2]
[377261583,1754307077146,-944.85,0.00039726,2]
[377261584,1754307077156,-769.58,0.00039726,2]
[377261585,1754307077165,-400.0,0.00039726,2]
[377261586,1754307077175,-400.0,0.00039726,2]
[377261587,1754307077186,-470.89,0.00039726,2]
[377261588,1754307077195,-867.8,0.00039726,2]
[377261589,1754307077205,-785.95,0.00039726,2]
[377261590,1754307077215,-781.34,0.00039726,2]
[377261591,1754307077225,-345.69488042,0.00039726,2]
[377261592,1754307077235,-524.27,0.00039726,2]
[377261593,1754307077245,-400.0,0.00039726,2]